fUST/lending_fUST_20250513
["ID","MTS","AMOUNT","RATE_DAILY","PERIOD"]
[360894625,1747126233769,-400.0,0.00017445,2]
[360894626,1747126233782,-1383.15,0.00017445,2]
[360894627,1747126233792,-392.88019991,0.00017446,2]
[360894629,1747126233802,-400.0,0.00017446,2]
[360894631,1747126233812,-400.0,0.00017446,2]
[360894632,1747126233822,-400.0,0.00017446,2]
[360894633,1747126233831,-400.0,0.00017446,2]
[360894634,1747126233841,-400.0,0.00017446,2]
[360894635,1747126233851,-317.98894387,0.00017446,2]
[360894636,1747126233861,-829.37,0.00017446,2]
[360894637,1747126233871,-386.25398111,0.00017446,2]
[360894638,1747126233880,-545.05,0.00017446,2]
[360894639,1747126233890,-2565.18,0.00017446,2]
[360894640,1747126233899,-209.93128043,0.00017446,2]
[360894641,1747126233908,-9114.89,0.00017446,2]
[360894642,1747126233918,-2742.68,0.00017446,2]
[360894643,1747126233927,-400.0,0.00017446,2]
[360894645,1747126233937,-484.96,0.00017446,2]
[360894647,1747126233946,-400.0,0.00017446,2]
[360894648,1747126233955,-780.72,0.00017446,2]
[360894649,1747126233964,-653.42,0.00017446,2]
[360894650,1747126233973,-400.0,0.00017447,2]
[360894651,1747126233983,-400.0,0.00017447,2]
[360894652,1747126233993,-400.0,0.00017447,2]
[360894653,1747126234002,-400.0,0.00017447,2]
[360894654,1747126234011,-400.0,0.00017447,2]
[360894655,1747126234021,-400.0,0.00017447,2]
[360894656,1747126234030,-400.0,0.00017447,2]
[360894657,1747126234039,-400.0,0.00017447,2]
[360894658,1747126234059,-400.0,0.00017447,2]
[360894659,1747126234070,-400.0,0.00017447,2]
[360894660,1747126234080,-400.0,0.00017447,2]
[360894661,1747126234089,-400.0,0.00017447,2]
[360894662,1747126234099,-580.81,0.00017447,2]
[360894663,1747126234109,-2215.88,0.00017447,2]
[360894664,1747126234119,-400.0,0.00017447,2]
[360894665,1747126234128,-400.0,0.00017447,2]
[360894666,1747126234138,-400.0,0.00017447,2]
[360894667,1747126234147,-400.0,0.00017447,2]
[360894668,1747126234157,-400.0,0.00017447,2]
[360894669,1747126234167,-503.69,0.00017447,2]
[360894670,1747126234177,-919.07,0.00017447,2]
[360894671,1747126234186,-1118.67,0.00017447,2]
[360894672,1747126234196,-400.0,0.00017447,2]
[360894673,1747126234205,-400.0,0.00017447,2]
[360894674,1747126234215,-636.24,0.00017447,2]
[360894675,1747126234225,-400.0,0.00017447,2]
[360894676,1747126234234,-400.0,0.00017447,2]
[360894677,1747126234243,-443.06,0.00017447,2]
[360894678,1747126234253,-400.0,0.00017447,2]
[360894679,1747126234262,-400.0,0.00017447,2]
[360894680,1747126234272,-400.0,0.00017447,2]
[360894681,1747126234281,-151.0,0.00017447,2]
[360894682,1747126234292,-595.01,0.00017447,2]
[360894683,1747126234301,-400.0,0.00017447,2]
[360894684,1747126234311,-400.0,0.00017447,2]
[360894685,1747126234321,-400.0,0.00017447,2]
[360894686,1747126234331,-400.0,0.00017447,2]
[360894687,1747126234341,-400.0,0.00017447,2]
[360894688,1747126234351,-15552.4,0.00017447,2]
[360894689,1747126234361,-1592.68,0.00017447,2]
[360894690,1747126234371,-151.0,0.00017447,2]
[360894691,1747126234381,-400.0,0.00017447,2]
[360894692,1747126234390,-533.29,0.00017447,2]
[360894693,1747126234399,-400.0,0.00017447,2]
[360894694,1747126234409,-400.0,0.00017447,2]
[360894695,1747126234418,-1024.09326576,0.00017447,2]
[360894696,1747126234428,-400.0,0.00017447,2]
[360894697,1747126234437,-549.08,0.00017447,2]
[360894698,1747126234447,-400.0,0.00017447,2]
[360894699,1747126234456,-3986.33,0.00017447,2]
[360894700,1747126234466,-400.0,0.00017447,2]
[360894701,1747126234475,-400.0,0.00017447,2]
[360894702,1747126234484,-400.0,0.00017447,2]
[360894703,1747126234493,-151.0,0.00017447,2]
[360894704,1747126234503,-4537.93,0.00017447,2]
[360894705,1747126234513,-1691.89,0.00017447,2]
[360894706,1747126234523,-400.0,0.00017447,2]
[360894707,1747126234532,-460.92389812,0.00017447,2]
[360894708,1747126234548,-466.53666222,0.00017447,2]
[360894709,1747126234560,-561.01946318,0.00017447,2]
[360894710,1747126234571,-3396.06104675,0.00017447,2]
[360894730,1747126237932,-338.27778723,0.00017171,2]
[360894732,1747126237944,-166.69221277,0.00017171,2]
[360894734,1747126237954,-896.64827635,0.00017172,2]
[360894738,1747126237987,-6381.23555731,0.00017172,2]
[360894741,1747126237999,-1766.77548297,0.00017172,2]
[360894743,1747126238008,-76.44122237,0.00017173,2]
[360894745,1747126238038,-323.55877763,0.00017173,2]
[360894746,1747126238047,-400.0,0.00017173,2]
[360894747,1747126238056,-400.0,0.00017173,2]
[360894748,1747126238066,-151.0,0.00017174,2]
[360894749,1747126238075,-1079.46929359,0.00017447,2]
[360894750,1747126238087,-10379.9854797,0.00017447,2]
[360894802,1747126240248,-400.28244682,0.00017171,2]
[360894804,1747126240258,-112.31809731,0.00017173,2]
[360894946,1747126243202,-400.0,0.00017171,2]
[360894948,1747126243211,-400.0,0.00017172,2]
[360894950,1747126243221,-617.02190269,0.00017173,2]
[360894952,1747126243230,-400.0,0.00017173,2]
[360894954,1747126243240,-151.0,0.00017173,2]
[360894956,1747126243250,-151.0,0.00017173,2]
[360894958,1747126243259,-3313.29,0.00017173,2]
[360894960,1747126243269,-195.98746195,0.00017173,2]
[360894962,1747126243279,-400.0,0.00017173,2]
[360894964,1747126243288,-400.0,0.00017445,2]
[360894966,1747126243298,-400.0,0.00017446,2]
[360894969,1747126243307,-6288.16415644,0.00017447,2]
[360894972,1747126243317,-400.0,0.00017447,2]
[360894974,1747126243326,-675.82,0.00017447,2]
[360894977,1747126243335,-400.0,0.00017447,2]
[360894980,1747126243344,-400.0,0.00017447,2]
[360894982,1747126243354,-787.52,0.00017447,2]
[360894984,1747126243363,-795.92,0.00017447,2]
[360894986,1747126243372,-3120.17,0.00017447,2]
[360894988,1747126243382,-400.0,0.00017447,2]
[360894990,1747126243391,-400.0,0.00017447,2]
[360894992,1747126243400,-400.0,0.00017447,2]
[360894994,1747126243410,-400.0,0.00017447,2]
[360894996,1747126243419,-966.31,0.00017447,2]
[360894998,1747126243428,-14662.26970064,0.00017447,2]
[360895000,1747126243440,-2534.17029936,0.00017447,2]
[360895002,1747126243449,-567.56,0.00017447,2]
[360895004,1747126243459,-508.83961208,0.00017447,2]
[360895006,1747126243468,-400.0,0.00017447,2]
[360895008,1747126243479,-1516.026608,0.00017447,2]
[360895010,1747126243489,-427.03,0.00017447,2]
[360895012,1747126243498,-1516.026608,0.00017447,2]
[360895014,1747126243508,-400.0,0.00017447,2]
[360895016,1747126243518,-400.0,0.00017447,2]
[360895018,1747126243528,-400.0,0.00017447,2]
[360895020,1747126243540,-862.11,0.00017447,2]
[360895022,1747126243550,-623.78,0.00017447,2]
[360895024,1747126243560,-444.77,0.00017447,2]
[360895026,1747126243569,-400.0,0.00017447,2]
[360895028,1747126243579,-261.16223909,0.00017447,2]
[360895030,1747126243588,-785.58,0.00017447,2]
[360895032,1747126243597,-400.0,0.00017447,2]
[360895034,1747126243607,-400.0,0.00017447,2]
[360895036,1747126243616,-3133.64,0.00017447,2]
[360895038,1747126243626,-400.0,0.00017447,2]
[360895040,1747126243635,-996.30463347,0.00017447,2]
[360895042,1747126243646,-2111.74536653,0.00017447,2]
[360895044,1747126243655,-151.0,0.00017447,2]
[360895046,1747126243665,-400.0,0.00017447,2]
[360895048,1747126243674,-151.0,0.00017447,2]
[360895050,1747126243684,-1066.83,0.00017447,2]
[360895052,1747126243693,-400.32616884,0.00017447,2]
[360895054,1747126243703,-400.0,0.00017447,2]
[360895056,1747126243712,-808.88,0.00017447,2]
[360895059,1747126243723,-664.0,0.00017447,2]
[360895061,1747126243733,-1097.52991333,0.00017447,2]
[360895256,1747126246192,-347.194135,0.00017173,2]
[360895257,1747126246203,-5000.0,0.00017273,2]
[360895259,1747126246212,-1019.12680065,0.00017447,2]
[360895261,1747126246224,-651.11328602,0.00017447,2]
[360895263,1747126246233,-400.0,0.00017447,2]
[360895265,1747126246243,-177.6793728,0.00017447,2]
[360895268,1747126246254,-51.98408825,0.00017447,2]
[360895270,1747126246263,-400.0,0.00017447,2]
[360895272,1747126246272,-964.30886425,0.00017447,2]
[360895274,1747126246283,-1416.64457004,0.00017447,2]
[360895276,1747126246295,-1479.6250002,0.00017447,2]
[360895278,1747126246307,-1423.8149856,0.00017447,2]
[360895281,1747126246319,-1493.951631,0.00017447,2]
[360895283,1747126246330,-661.05494891,0.00017447,2]
[360895285,1747126246339,-151.0,0.00017447,2]
[360895287,1747126246349,-151.0,0.00017447,2]
[360895289,1747126246358,-400.0,0.00017447,2]
[360895291,1747126246367,-174.65501609,0.00017447,2]
[360895293,1747126246378,-1428.27321,0.00017447,2]
[360895295,1747126246390,-1207.52679,0.00017447,2]
[360895642,1747127228547,-792.23627453,0.00013562,2]
[360895643,1747127241087,-4157.59420177,0.00013562,2]
[360895644,1747127242087,-50.1695237,0.00013562,2]
[360895645,1747127242110,-297.181888,0.00013699,2]
[360895646,1747127242132,-55.07880449,0.00014425,2]
[360895647,1747127243110,-125.51691877,0.00014425,2]
[360895648,1747127243131,-1200.0,0.00015781,2]
[360895649,1747127243152,-300.0,0.00015781,2]
[360895650,1747127243173,-300.0,0.00015781,2]
[360895651,1747127243193,-300.0,0.00015782,2]
[360895652,1747127243213,-300.0,0.00015782,2]
[360895653,1747127243234,-300.0,0.00015782,2]
[360895654,1747127243256,-500.0,0.00015783,2]
[360895655,1747127243277,-500.0,0.00015783,2]
[360895656,1747127243298,-215.772639,0.00016103,2]
[360895657,1747127243320,-181.5580592,0.00016172,2]
[360895658,1747127243342,-180.65264591,0.00016295,2]
[360895659,1747127243365,-500.0,0.00016899,2]
[360895660,1747127243386,-500.0,0.00016899,2]
[360895661,1747127243408,-474.59371012,0.00016899,2]
[360895694,1747127432142,-1200.0,0.0001673,2]
[360895696,1747127432153,-314.54692683,0.0001673,2]
[360895701,1747127432196,-3485.45307317,0.0001673,2]
[360895703,1747127432206,-300.0,0.00016897,2]
[360895706,1747127432216,-500.0,0.00016898,2]
[360895708,1747127432225,-339.52995483,0.00016898,2]
[360895710,1747127432237,-160.47004517,0.00016898,2]
[360895712,1747127432246,-612.42877313,0.00016898,2]
[360895714,1747127432256,-500.0,0.00016898,2]
[360895716,1747127432266,-500.0,0.00016898,2]
[360895718,1747127432275,-480.81978039,0.00016898,2]
[360895720,1747127432285,-500.0,0.00016898,2]
[360895722,1747127432295,-500.0,0.00016898,2]
[360895724,1747127432305,-500.0,0.00016898,2]
[360895726,1747127432315,-500.0,0.00016898,2]
[360895728,1747127432325,-500.0,0.00016898,2]
[360895730,1747127432336,-500.0,0.00016898,2]
[360895732,1747127432346,-500.0,0.00016898,2]
[360895734,1747127432356,-313.5684679,0.00016898,2]
[360895736,1747127432365,-500.0,0.00016898,2]
[360895738,1747127432375,-500.0,0.00016898,2]
[360895740,1747127432384,-3820.0,0.000169,2]
[360895742,1747127432394,-154.90708807,0.00016999,2]
[360895744,1747127432404,-323.70106306,0.00017096,2]
[360895746,1747127432414,-500.0,0.00017096,2]
[360895748,1747127432424,-500.0,0.00017096,2]
[360895749,1747127432434,-500.0,0.00017096,2]
[360895751,1747127432443,-500.0,0.00017096,2]
[360895752,1747127432453,-400.0,0.00017097,2]
[360895753,1747127432463,-776.36,0.00017097,2]
[360895754,1747127432472,-499.63,0.00017097,2]
[360895755,1747127432482,-400.0,0.00017097,2]
[360895756,1747127432491,-2370.55,0.00017097,2]
[360895757,1747127432501,-2530.79,0.00017097,2]
[360895758,1747127432510,-3604.15,0.00017097,2]
[360895759,1747127432520,-7238.5411073,0.00017097,2]
[360895760,1747127432534,-1153.2388927,0.00017097,2]
[360895761,1747127432543,-598.96,0.00017097,2]
[360895762,1747127432554,-1284.56,0.00017097,2]
[360895763,1747127432564,-400.0,0.00017097,2]
[360895764,1747127432574,-400.0,0.00017099,2]
[360895765,1747127432584,-400.0,0.00017099,2]
[360895766,1747127432593,-400.0,0.00017099,2]
[360895767,1747127432603,-1000.0,0.00017099,2]
[360895768,1747127432612,-400.0,0.00017099,2]
[360895769,1747127432622,-400.0,0.00017099,2]
[360895770,1747127432631,-258.69708356,0.00017099,2]
[360895771,1747127432641,-400.0,0.00017099,2]
[360895772,1747127432650,-400.0,0.00017099,2]
[360895773,1747127432659,-400.0,0.00017099,2]
[360895774,1747127432670,-400.0,0.00017099,2]
[360895775,1747127432679,-400.0,0.00017099,2]
[360895776,1747127432689,-715.66,0.00017099,2]
[360895777,1747127432699,-1476.62,0.00017099,2]
[360895779,1747127432708,-400.0,0.00017099,2]
[360895781,1747127432718,-400.0,0.00017099,2]
[360895782,1747127432727,-2383.71,0.00017099,2]
[360895783,1747127432736,-14312.19,0.00017099,2]
[360895784,1747127432746,-8514.32552033,0.00017099,2]
[360895806,1747127438135,-500.0,0.00017096,2]
[360895807,1747127438145,-500.0,0.00017096,2]
[360895808,1747127438155,-500.0,0.00017096,2]
[360895809,1747127438164,-500.0,0.00017096,2]
[360895810,1747127438175,-500.0,0.00017096,2]
[360895811,1747127438185,-500.0,0.00017096,2]
[360895812,1747127438194,-340.70444381,0.00017096,2]
[360895813,1747127438204,-146.39270119,0.00017096,2]
[360895814,1747127438215,-353.60729881,0.00017096,2]
[360895815,1747127438225,-500.0,0.00017096,2]
[360895816,1747127438234,-500.0,0.00017096,2]
[360895817,1747127438244,-500.0,0.00017096,2]
[360895818,1747127438254,-400.0,0.00017096,2]
[360895819,1747127438263,-444.54,0.00017097,2]
[360895820,1747127438272,-734.02,0.00017097,2]
[360895821,1747127438282,-5816.90070508,0.00017099,2]
[360895822,1747127438294,-6440.32377459,0.00017099,2]
[360895823,1747127438303,-3672.03,0.00017099,2]
[360895824,1747127438312,-4176.43,0.00017099,2]
[360895825,1747127438321,-619.51,0.00017099,2]
[360895826,1747127438331,-400.0,0.00017099,2]
[360895827,1747127438340,-9083.85,0.00017099,2]
[360895828,1747127438349,-15781.6,0.00017099,2]
[360895829,1747127438359,-2889.17,0.00017099,2]
[360895830,1747127438369,-798.09,0.00017099,2]
[360895831,1747127438378,-2865.71,0.00017099,2]
[360895832,1747127438388,-6836.12,0.00017099,2]
[360895833,1747127438397,-741.48,0.00017099,2]
[360895834,1747127438406,-2554.83,0.00017099,2]
[360895835,1747127438417,-478.6,0.00017099,2]
[360895836,1747127438426,-5083.62,0.00017099,2]
[360895837,1747127438435,-400.0,0.00017099,2]
[360895838,1747127438445,-262.23232766,0.00017099,2]
[360895839,1747127438461,-161.20736012,0.00017099,2]
[360895840,1747127438471,-400.0,0.00017099,2]
[360895841,1747127438480,-512.4,0.00017099,2]
[360895842,1747127438489,-400.0,0.00017099,2]
[360895843,1747127438499,-3179.2832191,0.000171,2]
[360895844,1747127438511,-821.1406638,0.000171,2]
[360895845,1747127438531,-999.5761171,0.000171,2]
[360895846,1747127438541,-400.0,0.00017105,2]
[360895847,1747127438550,-400.0,0.00017105,2]
[360895848,1747127438560,-431.28407692,0.00017105,2]
[360895849,1747127438570,-400.0,0.00017105,2]
[360895850,1747127438580,-503.8643203,0.00017106,2]
[360895851,1747127438590,-400.0,0.00017106,2]
[360895852,1747127438600,-382.71988633,0.00017106,2]
[360895853,1747127438610,-400.0,0.00017106,2]
[360895854,1747127438619,-401.54783248,0.00017106,2]
[360895855,1747127438629,-400.0,0.00017106,2]
[360895856,1747127438638,-400.0,0.00017106,2]
[360895857,1747127438647,-400.0,0.00017106,2]
[360895858,1747127438657,-157.97211085,0.00017106,2]
[360895859,1747127438666,-400.0,0.00017167,2]
[360895860,1747127438675,-226.77547368,0.00017167,2]
[360895861,1747127438685,-379.13785134,0.00017168,2]
[360895862,1747127438697,-20.86214866,0.00017168,2]
[360895863,1747127438707,-400.0,0.00017168,2]
[360895864,1747127438716,-400.0,0.00017168,2]
[360895865,1747127438725,-400.0,0.00017168,2]
[360895866,1747127438734,-2064.55,0.00017168,2]
[360895867,1747127438744,-400.0,0.00017168,2]
[360895868,1747127438754,-461.71,0.00017168,2]
[360895869,1747127438764,-400.0,0.00017168,2]
[360895870,1747127438774,-1025.45,0.00017168,2]
[360895871,1747127438784,-842.49,0.00017168,2]
[360895872,1747127438793,-406.14,0.00017168,2]
[360895873,1747127438802,-400.0,0.00017168,2]
[360895874,1747127438812,-583.22,0.00017168,2]
[360895875,1747127438821,-400.0,0.00017168,2]
[360895876,1747127438830,-400.0,0.00017168,2]
[360895877,1747127438839,-278.56783584,0.00017168,2]
[360895878,1747127438849,-400.0,0.00017168,2]
[360895879,1747127438858,-545.42,0.00017168,2]
[360895880,1747127438867,-514.96500573,0.00017168,2]
[360895881,1747127438876,-400.0,0.00017168,2]
[360895882,1747127438886,-400.0,0.00017168,2]
[360895883,1747127438895,-400.0,0.00017168,2]
[360895884,1747127438905,-400.0,0.00017168,2]
[360895885,1747127438914,-488.84,0.00017168,2]
[360895886,1747127438924,-400.0,0.00017168,2]
[360895887,1747127438934,-400.0,0.00017168,2]
[360895888,1747127438943,-400.0,0.00017168,2]
[360895889,1747127438953,-400.0,0.00017168,2]
[360895890,1747127438962,-400.0,0.00017168,2]
[360895891,1747127438971,-400.0,0.00017168,2]
[360895892,1747127438980,-400.0,0.00017168,2]
[360895893,1747127438990,-400.0,0.00017168,2]
[360895894,1747127439000,-1263.49,0.00017168,2]
[360895895,1747127439009,-400.0,0.00017168,2]
[360895896,1747127439018,-400.0,0.00017168,2]
[360895897,1747127439027,-1567.57,0.00017168,2]
[360895898,1747127439038,-400.0,0.00017168,2]
[360895899,1747127439049,-400.0,0.00017168,2]
[360895900,1747127439059,-503.32,0.00017168,2]
[360895901,1747127439070,-1121.33,0.00017168,2]
[360895902,1747127439080,-400.0,0.00017168,2]
[360895903,1747127439096,-729.59,0.00017168,2]
[360895904,1747127439106,-721.9,0.00017168,2]
[360895905,1747127439117,-400.0,0.00017168,2]
[360895906,1747127439127,-400.0,0.00017168,2]
[360895907,1747127439138,-898.75,0.00017168,2]
[360895908,1747127439148,-400.0,0.00017168,2]
[360895909,1747127439158,-400.0,0.00017168,2]
[360895910,1747127439169,-458.57788893,0.00017168,2]
[360895911,1747127439179,-885.78,0.00017168,2]
[360895912,1747127439189,-400.0,0.00017168,2]
[360895913,1747127439199,-723.89,0.00017168,2]
[360895914,1747127439209,-400.0,0.00017168,2]
[360895915,1747127439219,-520.27,0.00017168,2]
[360895916,1747127439229,-400.0,0.00017168,2]
[360895917,1747127439239,-164.54256276,0.00017168,2]
[360895918,1747127439828,-235.45743724,0.00017168,2]
[360895919,1747127439839,-293.33013857,0.00017168,2]
[360895920,1747127439855,-278.46986143,0.00017168,2]
[360895922,1747127439866,-223.40722712,0.00017168,2]
[360896002,1747127446321,-2748.185565,0.00016996,2]
[360896054,1747127446816,-1976.45305347,0.00016996,2]
[360896057,1747127446833,-275.36138153,0.00016996,2]
[360896059,1747127446842,-400.0,0.00017097,2]
[360896061,1747127446852,-1415.1,0.00017097,2]
[360896063,1747127446861,-1160.82,0.00017099,2]
[360896065,1747127446870,-1014.17795681,0.00017099,2]
[360897593,1747127948203,2000.0,0.00012,7]
[360897594,1747127948449,2000.0,0.00012,7]
[360897595,1747127948707,2000.0,0.00012,7]
[360897596,1747127949006,2000.0,0.00012,7]
[360897597,1747127949259,2000.0,0.00012,7]
[360897598,1747127949520,2000.0,0.00012,7]
[360897599,1747127949850,288.16200006,0.00012,7]
[360897600,1747127949881,1711.83799994,0.00012,7]
[360897601,1747127950186,2000.0,0.00012,7]
[360897602,1747127950478,2000.0,0.00012,7]
[360897603,1747127950760,2000.0,0.00012,7]
[360897615,1747128012871,10000.0,0.0002,120]
[360897618,1747128087737,211.0,0.00014,30]
[360897652,1747128427097,-2521.89152594,0.00013562,2]
[360897653,1747128427182,-254.36804391,0.00013562,2]
[360897654,1747128432108,-2223.74043015,0.00013562,2]
[360897655,1747128432128,-282.322793,0.00013699,2]
[360897656,1747128432147,-1000.0,0.0001411,7]
[360897657,1747128432168,-1000.0,0.00014247,7]
[360897658,1747128432188,-47.21246978,0.00014384,7]
[360897659,1747128445131,-1254.2782373,0.00014,2]
[360897660,1747128448078,-3872.28279206,0.00014,2]
[360897661,1747128448098,-952.78753022,0.00014384,7]
[360897662,1747128448119,-4832.14451766,0.0001451,2]
[360897738,1747128632408,-5000.0,0.00014354,2]
[360897740,1747128632417,-189.0,0.00014499,2]
[360897742,1747128632427,-1200.0,0.00014499,2]
[360897744,1747128632438,-300.0,0.00014499,2]
[360897746,1747128632447,-16167.45538681,0.000145,2]
[360897748,1747128632457,-1000.0,0.00014521,7]
[360897750,1747128632467,-1000.0,0.00014658,7]
[360897752,1747128632477,-1000.0,0.00014795,7]
[360897754,1747128632486,-1057.41289603,0.000149,2]
[360897756,1747128632496,-1000.0,0.00014932,7]
[360897758,1747128632505,-300.0,0.00014997,2]
[360897760,1747128632514,-300.0,0.00014997,2]
[360897762,1747128632524,-300.0,0.00014997,2]
[360897764,1747128632533,-300.0,0.00014997,2]
[360897766,1747128632542,-500.0,0.00014998,2]
[360897768,1747128632551,-500.0,0.00014998,2]
[360897770,1747128632561,-500.0,0.00014998,2]
[360897772,1747128632570,-500.0,0.00014998,2]
[360897774,1747128632579,-500.0,0.00014998,2]
[360897776,1747128632589,-154.97434738,0.00014998,2]
[360897778,1747128632598,-500.0,0.00014998,2]
[360897780,1747128632607,-500.0,0.00014998,2]
[360897782,1747128632617,-481.45000104,0.00014998,2]
[360897784,1747128632626,-500.0,0.00014998,2]
[360897786,1747128632635,-500.0,0.00014998,2]
[360897788,1747128632645,-500.0,0.00014998,2]
[360897790,1747128632654,-370.91022377,0.00014998,2]
[360897792,1747128632663,-500.0,0.00014998,2]
[360897794,1747128632673,-500.0,0.00014998,2]
[360897796,1747128632684,-500.0,0.00014998,2]
[360897798,1747128632694,-500.0,0.00014998,2]
[360897800,1747128632703,-1000.0,0.00015068,7]
[360897802,1747128632713,-1057.41289589,0.00015176,2]
[360897804,1747128632722,-400.0,0.00015321,2]
[360897806,1747128632731,-400.0,0.00015321,2]
[360897808,1747128632741,-744.01,0.00015321,2]
[360897810,1747128632751,-478.81,0.00015321,2]
[360897812,1747128632760,-2290.11,0.00015321,2]
[360897814,1747128632769,-3470.65,0.00015321,2]
[360897816,1747128632778,-1527.95052644,0.00015321,2]
[360897819,1747128632790,-914.05947356,0.00015321,2]
[360897821,1747128632799,-6511.79984693,0.00015321,2]
[360897823,1747128632810,-1565.27015307,0.00015321,2]
[360897825,1747128632819,-400.0,0.00015321,2]
[360897827,1747128632828,-574.01,0.00015321,2]
[360897829,1747128632837,-426.02,0.00015321,2]
[360897831,1747128632846,-400.0,0.00015341,2]
[360897833,1747128632855,-398.95049704,0.00015341,2]
[360897835,1747128632864,-549.08,0.00015341,2]
[360897837,1747128632874,-400.0,0.00015341,2]
[360897839,1747128632883,-1261.41,0.00015341,2]
[360897841,1747128632892,-1000.0,0.00015342,7]
[360897843,1747128632902,-1057.41289589,0.00015452,2]
[360897845,1747128632911,-1000.0,0.00015479,7]
[360897847,1747128632920,-400.0,0.00015595,2]
[360897849,1747128632929,-500.0,0.00015595,2]
[360897851,1747128632939,-385.846454,0.00015595,2]
[360897854,1747128632959,-358.163546,0.00015595,2]
[360897856,1747128632968,-478.81,0.00015595,2]
[360897858,1747128632977,-1410.52311688,0.00015595,2]
[360897860,1747128632988,-879.58688312,0.00015595,2]
[360897862,1747128632998,-717.91926866,0.00015595,2]
[360898115,1747128638369,-400.0,0.00014794,2]
[360898117,1747128638379,-224.73715012,0.00015068,2]
[360898119,1747128638389,-257.10923408,0.00015321,2]
[360898122,1747128638399,-2752.73073134,0.00015595,2]
[360898123,1747128638408,-2442.01,0.00015595,2]
[360898125,1747128638417,-644.69335638,0.00015595,2]
[360898135,1747128638498,-608.92218227,0.00015595,2]
[360898137,1747128638510,-554.03877979,0.00015595,2]
[360898144,1747128638560,-4250.2505069,0.00015595,2]
[360898346,1747128640608,-400.0,0.00014794,2]
[360898348,1747128640619,-1517.39152865,0.00015595,2]
[360898351,1747128640630,-501.77364601,0.00015595,2]
[360898353,1747128640639,-400.0,0.00015595,2]
[360898355,1747128640649,-574.01,0.00015595,2]
[360898357,1747128640658,-426.02,0.00015595,2]
[360898359,1747128640668,-400.0,0.00015615,2]
[360898361,1747128640677,-549.08,0.00015615,2]
[360898363,1747128640692,-400.0,0.00015615,2]
[360898365,1747128640703,-1261.41,0.00015615,2]
[360898367,1747128640712,-1000.0,0.00015616,7]
[360898369,1747128640721,-1057.41289589,0.00015728,2]
[360898371,1747128640730,-1000.0,0.00015753,7]
[360898373,1747128640739,-212.19047112,0.00015753,7]
[360898375,1747128640749,-400.0,0.00015869,2]
[360898377,1747128640758,-744.01,0.00015869,2]
[360898379,1747128640767,-478.81,0.00015869,2]
[360898381,1747128640776,-2290.11,0.00015869,2]
[360898382,1747128640786,-3470.65,0.00015869,2]
[360898385,1747128640795,-2442.01,0.00015869,2]
[360898386,1747128640804,-8077.07,0.00015869,2]
[360898388,1747128640813,-400.0,0.00015869,2]
[360898390,1747128640822,-574.01,0.00015869,2]
[360898392,1747128640831,-426.02,0.00015869,2]
[360898394,1747128640840,-324.0,0.00015876,2]
[360898396,1747128640849,-400.0,0.00015889,2]
[360898398,1747128640858,-400.0,0.00015889,2]
[360898400,1747128640867,-413.27731749,0.00015889,2]
[360898402,1747128640876,-311.30088787,0.00015889,2]
[360898404,1747128640885,-400.0,0.00015889,2]
[360898406,1747128640894,-400.0,0.00015889,2]